[Event "EYTCC U12 Girls 2018"]
[Site "Bad Blankeburg"]
[Date "2018.07.13"]
[Round "2.1"]
[White "Gaal, Zsoka"]
[Black "Bashylina, Luisa"]
[Result "1-0"]
[ECO "A49"]
[WhiteElo "2044"]
[BlackElo "1836"]
[Annotator "NA"]
[PlyCount "73"]
[EventDate "2018.07.12"]
[EventType "swiss"]
[EventCountry "GER"]
[SourceTitle "playchess.com"]
[Source "ChessBase"]
[SourceQuality "1"]
[TimeControl "40/5400+30:1800+30"]

1. d4 {[%emt 0:00:29]} Nf6 {[%emt 0:00:01]} 2. Nf3 {[%emt 0:00:17]} g6 {[%emt 0:00:23]} 3. g3 {[%emt 0:00:18]} Bg7 {[%emt 0:00:14]} 4. Bg2 {[%emt 0:00:25]} d6 {[%emt 0:00:24]} 5. O-O {[%emt 0:00:43]} O-O {[%emt 0:00:21]} 6. b3 {[%emt 0:00:27]} Nc6 {[%emt 0:01:50]} 7. Bb2 {[%emt 0:01:50]} Qe8 {[%emt 0:01:19]} 8. c4 {[%emt 0:09:18]} Nd7 {[%emt 0:06:58]} 9. Nc3 {[%emt 0:04:07]} e5 {[%emt 0:04:27]} 10. dxe5 {[%emt 0:09:18]} Ndxe5 {[%emt 0:01:20]} 11. Nxe5 {[%emt 0:04:32]} Nxe5 {[%emt 0:04:29]} 12. Qd2 {[%emt 0:04:40]} a5 {[%emt 0:12:11]} 13. a4 {[%emt 0:08:53]} Rb8 {[%emt 0:02:07]} 14. Nb5 {[%emt 0:13:12]} Qe7 {[%emt 0:04:59]} 15. Nd4 {[%emt 0:04:23]} Bd7 {[%emt 0:04:39]} 16. Rac1 {[%emt 0:08:10]} Rfe8 {[%emt 0:04:08]} 17. Bc3 {[%emt 0:05:02]} Nc6 {[%emt 0:03:07]} 18. e3 {[%emt 0:05:18]} Nxd4 {[%emt 0:01:39]} 19. Bxd4 {[%emt 0:01:26]} b6 {[%emt 0:01:58]} 20. Rfe1 {[%emt 0:03:07]} Be6 {[%emt 0:07:02]} 21. Qb2 {[%emt 0:05:32]} Bxd4 {[%emt 0:01:24]} 22. exd4 {[%emt 0:01:13]} Qd7 {[%emt 0:00:50]} 23. Qc3 {[%emt 0:02:18]} Bh3 {[%emt 0:01:28]} 24. Qf3 {[%emt 0:04:17]} Bxg2 {[%emt 0:00:15]} 25. Kxg2 {[%emt 0:00:10]} Kg7 {[%emt 0:01:09]} 26. d5 {[%emt 0:01:37]} Re7 {[%emt 0:00:46]} 27. Qc3+ {[%emt 0:00:54]} Kg8 {[%emt 0:01:27]} 28. Rxe7 {[%emt 0:00:40]} Qxe7 {[%emt 0:00:08]} 29. Re1 {[%emt 0:00:11]} Qd7 {[%emt 0:00:57]} 30. Qe3 {[%emt 0:00:52]} Kf8 {[%emt 0:00:35]} 31. Qd4 {[%emt 0:00:28]} Kg8 {[%emt 0:00:19]} 32. Qe4 {[%emt 0:00:32]} Kf8 {[%emt 0:00:23]} 33. Qh4 {[%emt 0:00:49]} Kg7 {[%emt 0:00:30]} 34. Re7 {[%emt 0:00:37]} Qd8 {[%emt 0:06:02]} 35. Qd4+ {[%emt 0:00:39]} Kg8 {[%emt 0:04:41]} 36. Qf6 {[%emt 0:00:27]} Qf8 {[%emt 0:00:46]} 37. Rxc7 {[%emt 0:00:22]} 1-0

[Event "EYTCC U12 Girls 2018"]
[Site "Bad Blankeburg"]
[Date "2018.07.13"]
[Round "2.2"]
[White "Butenandt, Svenja"]
[Black "Markus, Molli Amina"]
[Result "1-0"]
[ECO "D41"]
[WhiteElo "1751"]
[BlackElo "1566"]
[Annotator "NA"]
[PlyCount "101"]
[EventDate "2018.07.12"]
[EventType "swiss"]
[EventCountry "GER"]
[SourceTitle "playchess.com"]
[Source "ChessBase"]
[SourceQuality "1"]
[TimeControl "40/5400+30:1800+30"]

1. d4 {[%emt 0:00:00]} d5 {[%emt 0:00:00]} 2. c4 {[%emt 0:00:00]} e6 {[%emt 0:00:32]} 3. Nc3 {[%emt 0:00:00]} Nf6 {[%emt 0:00:56]} 4. cxd5 {[%emt 0:00:00]} Nxd5 {[%emt 0:00:53]} 5. e4 {[%emt 0:00:19]} Nxc3 {[%emt 0:01:03]} 6. bxc3 {[%emt 0:00:12]} c5 {[%emt 0:01:14]} 7. Nf3 {[%emt 0:01:34]} cxd4 {[%emt 0:01:02]} 8. cxd4 {[%emt 0:00:09]} Bb4+ {[%emt 0:01:19]} 9. Bd2 {[%emt 0:00:17]} Bxd2+ {[%emt 0:01:21]} 10. Qxd2 {[%emt 0:00:30]} O-O {[%emt 0:01:37]} 11. Bc4 {[%emt 0:01:19]} Nd7 {[%emt 0:02:11]} 12. O-O {[%emt 0:01:46]} Nf6 {[%emt 0:02:23]} 13. Rfe1 {[%emt 0:03:36]} b6 {[%emt 0:02:48]} 14. a4 {[%emt 0:02:21]} Bb7 {[%emt 0:02:53]} 15. Bd3 {[%emt 0:01:50]} Nh5 {[%emt 0:11:38]} 16. Bb1 {[%emt 0:12:15]} Rc8 {[%emt 0:03:28]} 17. Qb4 {[%emt 0:06:12]} Re8 {[%emt 0:15:17]} 18. Qb5 {[%emt 0:11:28]} Nf4 {[%emt 0:05:25]} 19. Ra3 {[%emt 0:09:10]} Bc6 {[%emt 0:04:54]} 20. Qb4 {[%emt 0:02:33]} Qe7 {[%emt 0:02:05]} 21. Qb2 {[%emt 0:08:59]} Rc7 {[%emt 0:06:02]} 22. Ne5 {[%emt 0:04:14]} Bb7 {[%emt 0:04:53]} 23. Rf3 {[%emt 0:05:47]} f6 {[%emt 0:03:20]} 24. Rxf4 {[%emt 0:02:16]} fxe5 {[%emt 0:00:14]} 25. dxe5 {[%emt 0:00:32]} Qg5 {[%emt 0:02:14]} 26. Rf3 {[%emt 0:00:57]} Rc5 {[%emt 0:00:48]} 27. Rd1 {[%emt 0:05:14]} Rec8 {[%emt 0:01:59]} 28. Ba2 {[%emt 0:04:03]} Bxe4 {[%emt 0:03:57]} 29. Bxe6+ {[%emt 0:01:25]} Kh8 {[%emt 0:00:27]} 30. Rg3 {[%emt 0:01:03]} Qc1 {[%emt 0:06:50]} 31. Qe2 {[%emt 0:01:46]} Qxd1+ {[%emt 0:00:42]} 32. Qxd1 {[%emt 0:00:04]} Rc1 {[%emt 0:00:09]} 33. Qf1 {[%emt 0:01:27]} R8c5 {[%emt 0:05:55]} 34. Re3 {[%emt 0:03:03]} Rxf1+ {[%emt 0:01:20]} 35. Kxf1 {[%emt 0:00:57]} Bc2 {[%emt 0:00:58]} 36. Rf3 {[%emt 0:00:30]} h6 {[%emt 0:00:07]} 37. Rf8+ {[%emt 0:00:11]} Kh7 {[%emt 0:00:30]} 38. Bg8+ {[%emt 0:00:41]} Kg6 {[%emt 0:00:38]} 39. e6 {[%emt 0:00:44]} Re5 {[%emt 0:00:54]} 40. f4 {[%emt 0:00:39]} Bd3+ {[%emt 0:00:47]} 41. Kf2 {[%emt 0:30:10]} Re2+ {[%emt 0:30:34]} 42. Kf3 {[%emt 0:00:10]} Re1 {[%emt 0:00:42]} 43. g4 {[%emt 0:01:51]} Rf1+ {[%emt 0:00:00]} 44. Kg3 {[%emt 0:00:00]} Rg1+ {[%emt 0:00:00]} 45. Kh4 {[%emt 0:00:00]} h5 {[%emt 0:00:00]} 46. Bf7+ {[%emt 0:00:00]} Kh7 {[%emt 0:00:00]} 47. Bxh5 {[%emt 0:00:00]} g6 {[%emt 0:00:00]} 48. e7 {[%emt 0:00:00]} gxh5 {[%emt 0:00:00]} 49. e8=Q {[%emt 0:00:00]} Rxg4+ {[%emt 0:00:00]} 50. Kxh5 {[%emt 0:00:00]} Bg6+ {[%emt 0:00:00]} 51. Kxg4 {[%emt 0:00:00]} 1-0

[Event "EYTCC U12 Girls 2018"]
[Site "Bad Blankeburg"]
[Date "2018.07.13"]
[Round "3"]
[White "Pentcheff, Laura"]
[Black "Peglau, Charis"]
[Result "0-1"]
[ECO "D02"]
[WhiteElo "1594"]
[BlackElo "1396"]
[Annotator "NA"]
[PlyCount "118"]
[EventDate "2018.07.12"]
[EventType "swiss"]
[EventCountry "GER"]
[SourceTitle "playchess.com"]
[Source "ChessBase"]
[SourceQuality "1"]
[TimeControl "40/5400+30:1800+30"]

1. d4 {[%emt 0:00:00]} d5 {[%emt 0:00:00]} 2. Nf3 {[%emt 0:00:00]} Nf6 {[%emt 0:00:00]} 3. g3 {[%emt 0:00:00]} Bf5 {[%emt 0:00:15]} 4. Bg2 {[%emt 0:00:04]} e6 {[%emt 0:00:18]} 5. O-O {[%emt 0:00:13]} Bd6 {[%emt 0:00:18]} 6. c4 {[%emt 0:00:34]} O-O {[%emt 0:01:45]} 7. Qb3 {[%emt 0:02:15]} Qc8 {[%emt 0:02:40]} 8. Nc3 {[%emt 0:02:07]} c6 {[%emt 0:07:36]} 9. Nd2 {[%emt 0:04:52]} dxc4 {[%emt 0:02:28]} 10. Qxc4 {[%emt 0:03:19]} Bg6 {[%emt 0:03:45]} 11. Nde4 {[%emt 0:03:14]} Nxe4 {[%emt 0:02:24]} 12. Nxe4 {[%emt 0:00:14]} Bc7 {[%emt 0:00:17]} 13. Qb3 {[%emt 0:02:56]} Nd7 {[%emt 0:02:19]} 14. Bd2 {[%emt 0:02:39]} Nb6 {[%emt 0:03:09]} 15. Nc5 {[%emt 0:12:16]} Rd8 {[%emt 0:10:51]} 16. e3 {[%emt 0:01:57]} Bd6 {[%emt 0:01:52]} 17. Ne4 {[%emt 0:01:20]} Be7 {[%emt 0:00:49]} 18. Rac1 {[%emt 0:00:52]} Qd7 {[%emt 0:09:07]} 19. Bb4 {[%emt 0:03:14]} Bxb4 {[%emt 0:03:07]} 20. Qxb4 {[%emt 0:00:06]} Bxe4 {[%emt 0:00:23]} 21. Bxe4 {[%emt 0:00:19]} Qd6 {[%emt 0:00:20]} 22. Qb3 {[%emt 0:03:16]} e5 {[%emt 0:04:31]} 23. dxe5 {[%emt 0:02:05]} Qxe5 {[%emt 0:01:02]} 24. Bg2 {[%emt 0:01:11]} Rd2 {[%emt 0:03:57]} 25. Rc2 {[%emt 0:05:58]} Rxc2 {[%emt 0:01:10]} 26. Qxc2 {[%emt 0:00:20]} Rd8 {[%emt 0:01:03]} 27. b3 {[%emt 0:00:50]} h6 {[%emt 0:00:35]} 28. a4 {[%emt 0:13:27]} Qa5 {[%emt 0:04:32]} 29. Rd1 {[%emt 0:05:52]} Rxd1+ {[%emt 0:01:25]} 30. Qxd1 {[%emt 0:00:04]} Qb4 {[%emt 0:00:24]} 31. h4 {[%emt 0:06:31]} Qe7 {[%emt 0:02:38]} 32. a5 {[%emt 0:02:34]} Qd7 {[%emt 0:02:37]} 33. Qxd7 {[%emt 0:00:55]} Nxd7 {[%emt 0:00:08]} 34. a6 {[%emt 0:00:04]} b6 {[%emt 0:01:20]} 35. Bxc6 {[%emt 0:01:44]} Nc5 {[%emt 0:00:14]} 36. b4 {[%emt 0:00:27]} Nxa6 {[%emt 0:00:30]} 37. b5 {[%emt 0:00:05]} Nb4 {[%emt 0:00:34]} 38. Kf1 {[%emt 0:00:58]} Kf8 {[%emt 0:00:10]} 39. Bf3 {[%emt 0:00:49]} Ke7 {[%emt 0:00:16]} 40. Ke1 {[%emt 0:00:32]} Kd6 {[%emt 0:00:33]} 41. Kd2 {[%emt 0:30:47]} Nd5 {[%emt 0:30:51]} 42. Kc2 {[%emt 0:02:01]} Nc7 {[%emt 0:00:44]} 43. Be2 {[%emt 0:00:25]} Kc5 {[%emt 0:00:12]} 44. Kb3 {[%emt 0:00:39]} Nxb5 {[%emt 0:00:23]} 45. f4 {[%emt 0:01:42]} Nd6 {[%emt 0:00:32]} 46. Ba6 {[%emt 0:00:40]} b5 {[%emt 0:00:35]} 47. e4 {[%emt 0:00:47]} Nxe4 {[%emt 0:00:43]} 48. Bb7 {[%emt 0:00:26]} Nxg3 {[%emt 0:00:13]} 49. Bf3 {[%emt 0:00:16]} Nf5 {[%emt 0:00:24]} 50. Be4 {[%emt 0:00:39]} Nxh4 {[%emt 0:00:47]} 51. Bd3 {[%emt 0:00:25]} Nf3 {[%emt 0:00:20]} 52. Ka3 {[%emt 0:00:29]} a5 {[%emt 0:00:50]} 53. Bc2 {[%emt 0:00:36]} Nd4 {[%emt 0:00:44]} 54. Bd1 {[%emt 0:00:12]} Ne6 {[%emt 0:00:45]} 55. f5 {[%emt 0:00:13]} Nd4 {[%emt 0:00:22]} 56. Bg4 {[%emt 0:00:13]} Kc4 {[%emt 0:01:24]} 57. Bd1 {[%emt 0:00:46]} f6 {[%emt 0:00:45]} 58. Bh5 {[%emt 0:00:40]} Nxf5 {[%emt 0:00:43]} 59. Bf7+ {[%emt 0:00:16]} Kc3 0-1

[Event "EYTCC U12 Girls 2018"]
[Site "Bad Blankeburg"]
[Date "2018.07.13"]
[Round "3"]
[White "Markus, Molli Amina"]
[Black "Voriskova, Anna"]
[Result "1/2-1/2"]
[ECO "A22"]
[WhiteElo "1566"]
[BlackElo "1569"]
[Annotator "NA"]
[PlyCount "113"]
[EventDate "2018.07.12"]
[EventType "swiss"]
[EventCountry "GER"]
[SourceTitle "playchess.com"]
[Source "ChessBase"]
[SourceQuality "1"]
[TimeControl "40/5400+30:1800+30"]

1. c4 {[%emt 0:00:00]} e5 {[%emt 0:00:00]} 2. Nc3 {[%emt 0:00:32]} Nf6 {[%emt 0:00:40]} 3. d3 {[%emt 0:00:55]} Nc6 {[%emt 0:01:42]} 4. g3 {[%emt 0:01:29]} Bb4 {[%emt 0:01:35]} 5. Bd2 {[%emt 0:01:56]} O-O {[%emt 0:01:20]} 6. Bg2 {[%emt 0:02:00]} Re8 {[%emt 0:01:49]} 7. e3 {[%emt 0:02:24]} Bxc3 {[%emt 0:02:38]} 8. Bxc3 {[%emt 0:01:14]} d5 {[%emt 0:01:24]} 9. cxd5 {[%emt 0:03:42]} Nxd5 {[%emt 0:00:12]} 10. Ne2 {[%emt 0:01:32]} Nxc3 {[%emt 0:04:55]} 11. bxc3 {[%emt 0:01:59]} Be6 {[%emt 0:08:10]} 12. O-O {[%emt 0:03:53]} Qd7 {[%emt 0:01:49]} 13. Re1 {[%emt 0:01:55]} Bh3 {[%emt 0:02:39]} 14. Bh1 {[%emt 0:01:27]} Bg4 {[%emt 0:06:11]} 15. d4 {[%emt 0:07:32]} e4 {[%emt 0:02:23]} 16. Qb1 {[%emt 0:02:35]} Bf3 {[%emt 0:02:51]} 17. Nf4 {[%emt 0:07:12]} g5 {[%emt 0:05:21]} 18. Qb5 {[%emt 0:19:58]} gxf4 {[%emt 0:10:32]} 19. Qg5+ {[%emt 0:01:31]} Kf8 {[%emt 0:02:07]} 20. Qh6+ {[%emt 0:02:20]} Ke7 {[%emt 0:23:04]} 21. Bxf3 {[%emt 0:02:04]} exf3 {[%emt 0:00:47]} 22. Qg5+ {[%emt 0:01:48]} f6 {[%emt 0:01:34]} 23. exf4+ {[%emt 0:04:00]} Kf7 {[%emt 0:00:41]} 24. Qh5+ {[%emt 0:01:44]} Kg7 {[%emt 0:00:26]} 25. Qxf3 {[%emt 0:01:47]} Rxe1+ {[%emt 0:00:49]} 26. Rxe1 {[%emt 0:00:06]} Re8 {[%emt 0:00:12]} 27. Rxe8 {[%emt 0:01:14]} Qxe8 {[%emt 0:00:04]} 28. Kg2 {[%emt 0:01:53]} f5 {[%emt 0:01:24]} 29. d5 {[%emt 0:01:51]} Na5 {[%emt 0:01:46]} 30. Qd1 {[%emt 0:02:32]} Qe4+ {[%emt 0:00:46]} 31. f3 {[%emt 0:01:00]} Qc4 {[%emt 0:01:02]} 32. Qd2 {[%emt 0:00:21]} h5 {[%emt 0:01:00]} 33. h3 {[%emt 0:01:04]} b6 {[%emt 0:01:54]} 34. g4 {[%emt 0:02:01]} Kg6 {[%emt 0:02:46]} 35. d6 {[%emt 0:02:26]} Nb7 {[%emt 0:01:31]} 36. d7 {[%emt 0:00:57]} hxg4 {[%emt 0:02:10]} 37. hxg4 {[%emt 0:00:49]} fxg4 {[%emt 0:00:44]} 38. fxg4 {[%emt 0:01:15]} Qg8 {[%emt 0:01:07]} 39. Qd3+ {[%emt 0:02:42]} Kf6 {[%emt 0:01:33]} 40. g5+ {[%emt 0:02:58]} Ke7 {[%emt 0:03:28]} 41. Qe4+ {[%emt 0:32:04]} Kxd7 42. Qxb7 Qxa2+ {[%emt 0:31:07]} 43. Kg3 {[%emt 0:00:54]} Qa5 {[%emt 0:01:11]} 44. Qf3 {[%emt 0:00:35]} Qf5 {[%emt 0:00:22]} 45. c4 {[%emt 0:02:15]} a5 {[%emt 0:01:10]} 46. Qc3 {[%emt 0:03:01]} a4 {[%emt 0:01:13]} 47. Qa3 {[%emt 0:03:21]} Qa5 {[%emt 0:00:50]} 48. Kg4 {[%emt 0:00:00]} Qa8 {[%emt 0:00:00]} 49. Qd3+ {[%emt 0:00:00]} Ke7 {[%emt 0:00:00]} 50. Qe2+ {[%emt 0:00:00]} Kf7 {[%emt 0:00:00]} 51. f5 {[%emt 0:00:00]} a3 {[%emt 0:00:00]} 52. Qe6+ {[%emt 0:00:00]} Kf8 {[%emt 0:00:00]} 53. Qf6+ {[%emt 0:00:00]} Kg8 {[%emt 0:00:00]} 54. Qg6+ {[%emt 0:00:00]} Kf8 {[%emt 0:00:00]} 55. Qf6+ {[%emt 0:00:00]} Kg8 {[%emt 0:00:00]} 56. Qg6+ {[%emt 0:00:00]} Kf8 {[%emt 0:00:00]} 57. Qf6+ {[%emt 0:00:00]} 1/2-1/2

[Event "EYTCC U12 Girls 2018"]
[Site "Bad Blankeburg"]
[Date "2018.07.13"]
[Round "3"]
[White "Pohle, Saskia"]
[Black "Cornileau, Juliette"]
[Result "0-1"]
[ECO "B32"]
[WhiteElo "1560"]
[BlackElo "1644"]
[Annotator "NA"]
[PlyCount "124"]
[EventDate "2018.07.12"]
[EventType "swiss"]
[EventCountry "GER"]
[SourceTitle "playchess.com"]
[Source "ChessBase"]
[SourceQuality "1"]
[TimeControl "40/5400+30:1800+30"]

1. e4 {[%emt 0:00:00]} c5 {[%emt 0:00:00]} 2. Nf3 {[%emt 0:00:00]} Nc6 {[%emt 0:00:00]} 3. d4 {[%emt 0:00:00]} cxd4 {[%emt 0:00:00]} 4. Nxd4 {[%emt 0:00:00]} e5 {[%emt 0:00:01]} 5. Ne2 {[%emt 0:00:00]} Nf6 {[%emt 0:00:38]} 6. Nbc3 {[%emt 0:00:00]} Bb4 {[%emt 0:00:17]} 7. a3 {[%emt 0:00:39]} Be7 {[%emt 0:00:32]} 8. Ng3 {[%emt 0:01:54]} d6 {[%emt 0:00:37]} 9. Bc4 {[%emt 0:02:45]} O-O {[%emt 0:01:16]} 10. O-O {[%emt 0:00:33]} Nd4 {[%emt 0:02:17]} 11. Be3 {[%emt 0:04:41]} Be6 {[%emt 0:02:38]} 12. Bxe6 {[%emt 0:00:53]} Nxe6 {[%emt 0:00:15]} 13. Qd2 {[%emt 0:02:38]} Qd7 {[%emt 0:07:43]} 14. Rfd1 {[%emt 0:04:57]} Rfd8 {[%emt 0:00:52]} 15. Nd5 {[%emt 0:02:35]} Nxd5 {[%emt 0:03:23]} 16. Qxd5 {[%emt 0:00:11]} g6 {[%emt 0:01:51]} 17. Rac1 {[%emt 0:02:23]} b6 {[%emt 0:01:49]} 18. c4 {[%emt 0:01:40]} Rac8 {[%emt 0:02:22]} 19. b4 {[%emt 0:03:16]} Qa4 {[%emt 0:08:01]} 20. b5 {[%emt 0:05:24]} Rc7 {[%emt 0:07:47]} 21. Rd3 {[%emt 0:02:24]} Rdc8 {[%emt 0:16:15]} 22. Rdc3 {[%emt 0:00:30]} Qa5 {[%emt 0:08:41]} 23. Qd3 {[%emt 0:03:30]} a6 {[%emt 0:09:05]} 24. bxa6 {[%emt 0:01:16]} Qxa6 {[%emt 0:00:20]} 25. h3 {[%emt 0:00:15]} Nc5 {[%emt 0:04:07]} 26. Bxc5 {[%emt 0:03:45]} Rxc5 {[%emt 0:01:10]} 27. Nf1 {[%emt 0:06:35]} Qb7 {[%emt 0:02:45]} 28. Ne3 {[%emt 0:01:31]} Bg5 {[%emt 0:03:22]} 29. R1c2 {[%emt 0:05:19]} Bxe3 {[%emt 0:00:24]} 30. Qxe3 {[%emt 0:00:15]} Qc6 {[%emt 0:00:24]} 31. Qe2 {[%emt 0:03:28]} Qc7 {[%emt 0:00:40]} 32. a4 {[%emt 0:00:24]} Qc6 {[%emt 0:01:14]} 33. Qd3 {[%emt 0:00:42]} Ra8 {[%emt 0:01:21]} 34. Ra2 {[%emt 0:01:16]} Rxa4 {[%emt 0:01:26]} 35. Rxa4 {[%emt 0:00:27]} Qxa4 {[%emt 0:00:08]} 36. Kh2 {[%emt 0:00:29]} Qc6 {[%emt 0:00:46]} 37. Rb3 {[%emt 0:04:54]} Rxc4 {[%emt 0:01:35]} 38. Rxb6 {[%emt 0:00:11]} Qxb6 {[%emt 0:00:27]} 39. Qxc4 {[%emt 0:00:05]} Qxf2 {[%emt 0:00:32]} 40. Qc6 {[%emt 0:02:22]} Qc5 {[%emt 0:01:53]} 41. Qa8+ {[%emt 0:32:51]} Kg7 {[%emt 0:30:13]} 42. Qe8 {[%emt 0:00:11]} Qc1 {[%emt 0:03:08]} 43. Qa8 {[%emt 0:01:00]} Qc7 {[%emt 0:01:18]} 44. Qe8 {[%emt 0:04:29]} f5 {[%emt 0:02:27]} 45. Qa8 {[%emt 0:00:52]} fxe4 {[%emt 0:01:13]} 46. Qxe4 {[%emt 0:00:07]} Qf7 {[%emt 0:00:30]} 47. Qd3 {[%emt 0:00:49]} d5 {[%emt 0:03:12]} 48. Qe2 {[%emt 0:00:17]} Qe7 {[%emt 0:00:00]} 49. Qb5 {[%emt 0:00:00]} d4 {[%emt 0:00:00]} 50. Qd3 {[%emt 0:00:00]} Qd6 {[%emt 0:00:00]} 51. Kg1 {[%emt 0:00:00]} Qd5 {[%emt 0:00:00]} 52. Qa3 Qd7 {[%emt 0:00:00]} 53. Qc5 {[%emt 0:00:00]} Kf6 {[%emt 0:00:00]} 54. Qf8+ {[%emt 0:00:00]} Ke6 {[%emt 0:00:00]} 55. Qg8+ {[%emt 0:00:00]} Kf5 {[%emt 0:00:00]} 56. Qf8+ {[%emt 0:00:00]} Kg5 {[%emt 0:00:00]} 57. h4+ {[%emt 0:00:00]} Kh5 {[%emt 0:00:00]} 58. Qf6 {[%emt 0:00:00]} Qf5 {[%emt 0:00:00]} 59. Qg7 {[%emt 0:00:00]} h6 {[%emt 0:00:00]} 60. g3 {[%emt 0:00:00]} d3 {[%emt 0:00:00]} 61. Qe7 {[%emt 0:00:00]} d2 {[%emt 0:00:46]} 62. Qd6 {[%emt 0:00:00]} Qb1+ 0-1

[Event "EYTCC U12 Girls 2018"]
[Site "Bad Blankeburg"]
[Date "2018.07.14"]
[Round "4"]
[White "Bashylina, Luisa"]
[Black "Fizerova, Lucie"]
[Result "1-0"]
[ECO "B30"]
[WhiteElo "1836"]
[BlackElo "1554"]
[Annotator "NA"]
[PlyCount "45"]
[EventDate "2018.07.12"]
[EventType "swiss"]
[EventCountry "GER"]
[SourceTitle "playchess.com"]
[Source "ChessBase"]
[SourceQuality "1"]
[TimeControl "40/5400+30:1800+30"]

1. e4 {[%emt 0:00:00]} c5 {[%emt 0:00:00]} 2. Nf3 {[%emt 0:00:00]} Nc6 {[%emt 0:00:00]} 3. Bb5 {[%emt 0:00:00]} d6 {[%emt 0:00:40]} 4. d4 {[%emt 0:00:00]} cxd4 {[%emt 0:01:40]} 5. Qxd4 {[%emt 0:00:10]} Bd7 {[%emt 0:04:06]} 6. Bxc6 {[%emt 0:00:35]} Bxc6 {[%emt 0:00:25]} 7. Nc3 {[%emt 0:00:19]} e5 {[%emt 0:01:00]} 8. Qd3 {[%emt 0:00:24]} Nf6 {[%emt 0:03:00]} 9. Bg5 {[%emt 0:01:13]} Be7 {[%emt 0:01:57]} 10. O-O-O {[%emt 0:03:04]} Qc7 {[%emt 0:01:41]} 11. Bxf6 {[%emt 0:00:52]} gxf6 {[%emt 0:00:13]} 12. Nh4 {[%emt 0:00:31]} Rd8 {[%emt 0:02:33]} 13. Nf5 {[%emt 0:02:21]} Bf8 {[%emt 0:02:09]} 14. Kb1 {[%emt 0:09:55]} Rg8 {[%emt 0:11:09]} 15. Qh3 {[%emt 0:02:32]} Rh8 {[%emt 0:01:00]} 16. Qh4 {[%emt 0:01:39]} Be7 {[%emt 0:03:00]} 17. Ng7+ {[%emt 0:01:00]} Kf8 {[%emt 0:00:41]} 18. Qh6 {[%emt 0:00:35]} Kg8 {[%emt 0:01:47]} 19. Rd3 {[%emt 0:00:25]} Qc8 {[%emt 0:03:19]} 20. Nf5 {[%emt 0:00:41]} Qxf5 {[%emt 0:01:25]} 21. exf5 {[%emt 0:00:11]} Bf8 {[%emt 0:00:38]} 22. Rg3+ {[%emt 0:00:05]} Bg7 {[%emt 0:00:06]} 23. Qxg7# 1-0

[Event "EYTCC U12 Girls 2018"]
[Site "Bad Blankeburg"]
[Date "2018.07.14"]
[Round "4"]
[White "Voriskova, Anna"]
[Black "Butenandt, Svenja"]
[Result "1/2-1/2"]
[ECO "B52"]
[WhiteElo "1569"]
[BlackElo "1751"]
[Annotator "NA"]
[PlyCount "60"]
[EventDate "2018.07.12"]
[EventType "swiss"]
[EventCountry "GER"]
[SourceTitle "playchess.com"]
[Source "ChessBase"]
[SourceQuality "1"]
[TimeControl "40/5400+30:1800+30"]

1. e4 {[%emt 0:00:00]} c5 {[%emt 0:00:00]} 2. Nf3 {[%emt 0:00:00]} d6 {[%emt 0:00:00]} 3. Bb5+ {[%emt 0:00:55]} Bd7 {[%emt 0:00:00]} 4. Bxd7+ {[%emt 0:00:05]} Qxd7 {[%emt 0:00:00]} 5. O-O {[%emt 0:00:16]} Nf6 {[%emt 0:00:31]} 6. Qe2 {[%emt 0:00:34]} Nc6 {[%emt 0:02:05]} 7. c3 {[%emt 0:01:36]} g6 {[%emt 0:01:45]} 8. Rd1 {[%emt 0:00:43]} Bg7 {[%emt 0:01:13]} 9. d4 {[%emt 0:00:29]} cxd4 {[%emt 0:01:50]} 10. cxd4 {[%emt 0:00:08]} O-O {[%emt 0:04:49]} 11. Nc3 {[%emt 0:01:32]} a6 {[%emt 0:03:16]} 12. a4 {[%emt 0:06:16]} Rac8 {[%emt 0:05:54]} 13. Bd2 {[%emt 0:04:06]} Na5 {[%emt 0:06:09]} 14. e5 {[%emt 0:09:20]} dxe5 {[%emt 0:11:51]} 15. dxe5 {[%emt 0:03:28]} Nd5 {[%emt 0:07:31]} 16. Nxd5 {[%emt 0:07:02]} Qxd5 {[%emt 0:00:13]} 17. Bb4 {[%emt 0:04:28]} Qc4 {[%emt 0:00:53]} 18. Qxc4 {[%emt 0:01:57]} Nxc4 {[%emt 0:00:06]} 19. Bxe7 {[%emt 0:03:36]} Rfe8 {[%emt 0:01:34]} 20. Rd7 {[%emt 0:04:50]} Nxb2 {[%emt 0:04:37]} 21. Rxb7 {[%emt 0:04:31]} Nxa4 {[%emt 0:02:47]} 22. h3 {[%emt 0:02:05]} Nc5 {[%emt 0:02:56]} 23. Bxc5 {[%emt 0:02:25]} Rxc5 {[%emt 0:00:09]} 24. Rxa6 {[%emt 0:01:17]} Bxe5 {[%emt 0:02:18]} 25. Nxe5 {[%emt 0:00:27]} Rcxe5 {[%emt 0:01:11]} 26. Raa7 {[%emt 0:02:11]} Rf5 {[%emt 0:02:25]} 27. Kf1 {[%emt 0:01:19]} Rc8 28. Rc7 {[%emt 0:00:58]} Rb8 {[%emt 0:04:39]} 29. Rab7 {[%emt 0:00:19]} Ra8 {[%emt 0:00:32]} 30. Ra7 {[%emt 0:00:06]} Rb8 {[%emt 0:00:14]} 1/2-1/2